bitfinex-derivatives/quotes_BNBF0:USTF0_20250507
["timestamp","ask_amount","ask_price","bid_price","bid_amount"]
[1746630931252,0.990899,602.01,601.29,3.0716182]
[1746630931751,0.990899,602.0,601.29,3.0716182]
[1746630932250,0.990899,601.99,601.29,3.0716182]
[1746630932752,0.990899,601.98,601.29,3.0716182]
[1746630932946,0.990899,601.97,601.29,3.0716182]
[1746630933251,0.990899,601.96,601.29,3.0716182]
[1746630933853,0.990899,601.95,601.29,3.0716182]
[1746630934248,0.990899,601.94,601.29,3.0716182]
[1746630934753,0.990899,601.93,601.29,3.0716182]
[1746630935553,0.990899,601.92,601.29,3.0716182]
[1746630936149,0.990899,601.91,601.29,3.0716182]
[1746630936751,0.990899,601.9,601.29,3.0716182]
[1746630937155,0.990899,601.89,601.29,3.0716182]
[1746630937849,0.990899,601.88,601.29,3.0716182]
[1746630938354,0.990899,601.87,601.29,3.0716182]
[1746630939052,0.990899,601.86,601.29,3.0716182]
[1746630939655,0.990899,601.85,601.29,3.0716182]
[1746630940150,0.28915182,602.52,601.29,3.0716182]
[1746630940151,0.990899,601.84,601.29,3.0716182]
[1746630940656,0.990899,601.83,601.29,3.0716182]
[1746630940951,0.990899,601.82,601.29,0.3326182]
[1746630941657,0.990899,601.81,601.29,0.3326182]
[1746630942450,0.990899,601.8,601.29,0.3326182]
[1746630942756,0.990899,601.79,601.29,0.3326182]
[1746630943352,0.28917345,602.49,601.29,0.3326182]
[1746630943752,0.99177786,602.48,601.29,1.0826182]
[1746630944358,0.99177786,602.47,601.29,1.0826182]
[1746630944560,0.99177786,602.46,601.29,1.0826182]
[1746630944859,0.99177786,602.46,601.29,1.8596182]
[1746630945054,0.99177786,602.45,601.29,1.8596182]
[1746630945460,0.99177786,602.44,601.29,1.8596182]
[1746630946159,0.99177786,602.43,601.29,1.8596182]
[1746630946461,0.99177786,602.42,601.29,1.8596182]
[1746630946961,0.99177786,602.41,601.29,1.8596182]
[1746630947158,0.99177786,602.4,601.29,1.8596182]
[1746630947862,0.99177786,602.39,601.29,1.8596182]
[1746630948258,0.99177786,602.38,601.29,1.8596182]
[1746630948863,0.99177786,602.37,601.29,1.8596182]
[1746630949265,0.99177786,602.36,601.29,1.8596182]
[1746630949866,0.99177786,602.35,601.29,1.8596182]
[1746630950265,0.99177786,602.34,601.29,1.8596182]
[1746630950867,0.99177786,602.33,601.29,1.8596182]
[1746630951365,0.28911579,602.46,601.29,1.8596182]
[1746630951366,0.99177786,602.32,601.29,1.8596182]
[1746630951765,0.99177786,602.31,601.29,1.8596182]
[1746630952158,0.99177786,602.3,601.29,1.8596182]
[1746630952461,0.99177786,602.29,601.29,1.8596182]
[1746630953165,0.99177786,602.28,601.29,1.8596182]
[1746630953664,0.99177786,602.27,601.29,1.8596182]
[1746630954367,0.99177786,602.26,601.29,1.8596182]
[1746630954665,0.99177786,602.25,601.29,1.8596182]
[1746630955566,0.99177786,602.24,601.29,1.8596182]
[1746630955766,0.99177786,602.23,601.29,1.8596182]
[1746630955962,0.99177786,602.22,601.29,1.8596182]
[1746630956662,0.99177786,602.21,601.29,1.8596182]
[1746630957564,0.99177786,602.2,601.29,1.8596182]
[1746630958167,0.99177786,602.19,601.29,1.8596182]
[1746630958668,0.99177786,602.18,601.29,1.8596182]
[1746630959168,0.99177786,602.17,601.29,1.8596182]
[1746630959771,0.99177786,602.16,601.29,1.8596182]
[1746630959970,0.99177786,602.15,601.29,1.8596182]
[1746630960368,0.99177786,602.14,601.29,1.8596182]
[1746630961070,0.99177786,602.13,601.29,1.8596182]
[1746630961268,0.99177786,602.12,601.29,1.8596182]
[1746630961566,0.99177786,602.11,601.29,1.8596182]
[1746630962270,0.99177786,602.1,601.29,1.8596182]
[1746630963072,0.99177786,602.09,601.29,1.8596182]
[1746630963574,0.99177786,602.08,601.29,1.8596182]
[1746630964474,0.99177786,602.07,601.29,1.8596182]
[1746630964873,0.99177786,602.06,601.29,1.8596182]
[1746630965569,0.99177786,602.05,601.29,1.8596182]
[1746630965873,0.99177786,602.04,601.29,1.8596182]
[1746630966067,0.99177786,602.03,601.29,1.8596182]
[1746630966266,0.99177786,602.02,601.29,1.8596182]
[1746630966472,0.99177786,602.01,601.29,1.8596182]
[1746630966869,0.99177786,602.0,601.29,1.8596182]
[1746630967769,0.99177786,601.99,601.29,1.8596182]
[1746630968576,0.28914101,602.5,601.29,1.8596182]
[1746630968577,0.99177786,601.98,601.29,1.8596182]
[1746630968771,0.99177786,601.98,601.29,2.7066182]
[1746630968973,0.99177786,601.97,601.29,2.7066182]
[1746630969572,0.99177786,601.96,601.29,2.7066182]
[1746630969976,0.99177786,601.95,601.29,2.7066182]
[1746630970276,0.99177786,601.94,601.29,2.7066182]
[1746630970672,0.99177786,601.93,601.29,2.7066182]
[1746630971077,0.99177786,601.92,601.29,2.7066182]
[1746630971677,0.99177786,601.91,601.29,2.7066182]
[1746630972277,0.99177786,601.9,601.29,2.7066182]
[1746630972676,0.99177786,601.89,601.29,2.7066182]
[1746630973176,0.99177786,601.88,601.29,2.7066182]
[1746630973574,0.99177786,601.87,601.29,2.7066182]
[1746630974078,0.28914341,602.57,601.29,2.7066182]
[1746630974277,0.305219,602.56,601.29,2.7066182]
[1746630974577,0.98969202,602.55,601.29,2.7066182]
[1746630974873,0.305219,602.54,601.29,2.7066182]
[1746630975179,0.98969202,602.53,601.29,2.7066182]
[1746630975779,0.98969202,602.52,601.29,2.7066182]
[1746630976076,0.98969202,602.51,601.29,2.7066182]
[1746630976478,0.98969202,602.5,601.29,2.7066182]
[1746630977277,0.98969202,602.49,601.29,2.7066182]
[1746630977679,0.98969202,602.48,601.29,2.7066182]
[1746630977978,0.98969202,602.47,601.29,2.7066182]
[1746630978480,0.98969202,602.46,601.29,2.7066182]
[1746630979079,0.98969202,602.45,601.29,2.7066182]
[1746630979282,0.98969202,602.44,601.29,2.7066182]
[1746630979780,0.98969202,602.43,601.29,2.7066182]
[1746630980179,0.98969202,602.42,601.29,2.7066182]
[1746630980580,0.98969202,602.41,601.29,2.7066182]
[1746630980980,0.98969202,602.4,601.29,2.7066182]
[1746630981682,0.98969202,602.39,601.29,2.7066182]
[1746630982276,0.98969202,602.38,601.29,2.7066182]
[1746630983182,0.98969202,602.37,601.29,2.7066182]
[1746630983582,0.98969202,602.36,601.29,2.7066182]
[1746630984687,0.98969202,602.35,601.29,2.7066182]
[1746630984988,0.98969202,602.34,601.29,2.7066182]
[1746630985285,0.98969202,602.34,601.29,3.3806182]
[1746630985686,0.98969202,602.33,601.29,3.3806182]
[1746630985986,0.98969202,602.32,601.29,3.3806182]
[1746630986491,0.98969202,602.31,601.29,3.3806182]
[1746630986791,0.98969202,602.3,601.29,3.3806182]
[1746630987190,0.98969202,602.29,601.29,3.3806182]
[1746630987589,0.98969202,602.28,601.29,3.3806182]
[1746630988191,0.98969202,602.27,601.29,3.3806182]
[1746630988490,0.98969202,602.26,601.29,3.3806182]
[1746630988692,0.98969202,602.25,601.29,3.3806182]
[1746630989188,0.98969202,602.24,601.29,3.3806182]
[1746630989789,0.98969202,602.23,601.29,3.3806182]
[1746630990196,0.98969202,602.22,601.29,3.3806182]
[1746630990496,0.98969202,602.21,601.29,3.3806182]
[1746630991191,0.98969202,602.2,601.29,3.3806182]
[1746630991593,0.98969202,602.19,601.29,3.3806182]
[1746630992298,0.98969202,602.18,601.29,3.3806182]
[1746630992594,0.98969202,602.17,601.29,3.3806182]
[1746630993196,0.33186758,602.65,601.29,3.3806182]
[1746630993197,0.98969202,602.16,601.29,3.3806182]
[1746630993598,0.98969202,602.15,601.29,3.3806182]
[1746630994118,0.98969202,602.14,601.29,3.3806182]
[1746630994402,0.98969202,602.13,601.29,3.3806182]
[1746630994902,0.98969202,602.12,601.29,3.3806182]
[1746630995302,0.98969202,602.11,601.29,3.3806182]
[1746630995598,0.98969202,602.1,601.29,3.3806182]
[1746630996102,0.28909537,602.63,601.29,3.3806182]
[1746630996103,0.98969202,602.09,601.29,3.3806182]
[1746630996902,0.98969202,602.08,601.29,3.3806182]
[1746630997304,0.98969202,602.07,601.29,3.3806182]
[1746630997605,0.98969202,602.06,601.29,3.3806182]
[1746630998099,0.98969202,602.05,601.29,3.3806182]
[1746630998503,0.98969202,602.04,601.29,3.3806182]
[1746630998805,0.98969202,602.03,601.29,3.3806182]
[1746630999204,0.98969202,602.02,601.29,3.3806182]
[1746630999407,0.98969202,602.01,601.29,3.3806182]
[1746630999605,0.28911098,602.63,601.29,3.3806182]
[1746631000306,0.98829037,602.62,601.29,3.3806182]
[1746631000611,0.98829037,602.61,601.29,3.3806182]
[1746631000910,0.98829037,602.6,601.29,3.3806182]
[1746631001611,0.98829037,602.59,601.29,3.3806182]
[1746631002107,0.98829037,602.58,601.29,3.3806182]
[1746631002610,0.98829037,602.57,601.29,3.3806182]
[1746631003010,0.98829037,602.56,601.29,3.3806182]
[1746631003511,0.98829037,602.55,601.29,3.3806182]
[1746631003912,0.98829037,602.54,601.29,3.3806182]
[1746631004516,0.98829037,602.53,601.29,3.3806182]
[1746631005112,0.98829037,602.52,601.29,3.3806182]
[1746631005814,0.98829037,602.51,601.29,3.3806182]
[1746631006314,0.98829037,602.5,601.29,3.3806182]
[1746631006913,0.98829037,602.49,601.29,3.3806182]
[1746631007213,0.98829037,602.48,601.29,3.3806182]
[1746631007708,0.98829037,602.47,601.29,3.3806182]
[1746631008313,0.98829037,602.46,601.29,3.3806182]
[1746631008515,0.98829037,602.45,601.29,3.3806182]
[1746631008811,0.98829037,602.44,601.29,3.3806182]
[1746631009309,0.98829037,602.43,601.29,3.3806182]
[1746631009610,0.98829037,602.42,601.29,3.3806182]
[1746631010016,0.98829037,602.41,601.29,3.3806182]
[1746631010811,0.98829037,602.4,601.29,3.3806182]
[1746631011311,0.98829037,602.39,601.29,3.3806182]
[1746631011619,0.98829037,602.38,601.29,3.3806182]
[1746631011916,0.98829037,602.37,601.29,3.3806182]
[1746631012418,0.28906536,602.64,601.29,3.3806182]
[1746631012913,0.98823616,602.63,601.29,3.3806182]
[1746631013818,0.98823616,602.62,601.29,3.3806182]
[1746631014618,0.98823616,602.61,601.29,3.3806182]
[1746631015019,0.98823616,602.6,601.29,3.3806182]
[1746631015218,0.98823616,602.59,601.29,3.3806182]
[1746631015817,0.98823616,602.58,601.29,3.3806182]
[1746631016019,0.28903895,602.64,601.29,3.3806182]
[1746631017013,0.98886151,602.63,601.29,3.3806182]
[1746631017522,0.98886151,602.62,601.29,3.3806182]
[1746631017722,0.98886151,602.61,601.29,3.3806182]
[1746631018119,0.98886151,602.6,601.29,3.3806182]
[1746631018324,0.98886151,602.59,601.29,3.3806182]
[1746631018622,0.30519777,602.58,601.29,3.3806182]
[1746631018820,1.29405928,602.58,601.29,3.3806182]
[1746631019122,0.30519777,602.57,601.29,3.3806182]
[1746631019424,0.98886151,602.56,601.29,3.3806182]
[1746631019825,1.29405928,602.55,601.29,3.3806182]
[1746631020026,0.98886151,602.54,601.29,3.3806182]
[1746631020227,1.29405928,602.54,601.29,3.3806182]
[1746631020424,1.29405928,602.53,601.29,3.3806182]
[1746631021021,0.30519777,602.52,601.29,3.3806182]
[1746631021425,0.98886151,602.51,601.29,3.3806182]
[1746631022028,1.29405928,602.5,601.29,3.3806182]
[1746631022328,0.30519777,602.49,601.29,3.3806182]
[1746631022623,1.29405928,602.49,601.29,3.3806182]
[1746631022831,0.98886151,602.48,601.29,3.3806182]
[1746631023130,1.29405928,602.47,601.29,3.3806182]
[1746631023727,0.30519777,602.46,601.29,3.3806182]
[1746631024024,0.98886151,602.45,601.29,3.3806182]
[1746631026031,0.98886151,602.39,601.29,3.3806182]
[1746631026532,0.33186758,602.65,601.29,3.3806182]
[1746631026533,0.98886151,602.38,601.29,3.3806182]
[1746631026828,0.98886151,602.37,601.29,3.3806182]
[1746631027430,0.98886151,602.36,601.29,3.3806182]
[1746631027730,0.98886151,602.35,601.29,3.3806182]
[1746631027929,0.98886151,602.34,601.29,3.3806182]
[1746631028333,0.98886151,602.33,601.29,3.3806182]
[1746631028634,0.98886151,602.32,601.29,3.3806182]
[1746631028831,0.98886151,602.31,601.29,3.3806182]
[1746631029131,0.98886151,602.3,601.29,3.3806182]
[1746631029633,0.98886151,602.29,601.29,3.3806182]
[1746631030033,0.98886151,602.28,601.29,3.3806182]
[1746631030534,0.98886151,602.27,601.29,3.3806182]
[1746631031034,0.98886151,602.26,601.29,3.3806182]
[1746631031531,0.98886151,602.25,601.29,3.3806182]
[1746631032237,0.98886151,602.24,601.29,3.3806182]
[1746631032536,0.98886151,602.23,601.29,3.3806182]
[1746631033037,0.98886151,602.22,601.29,3.3806182]
[1746631033536,0.98886151,602.21,601.29,3.3806182]
[1746631033937,0.98886151,602.2,601.29,3.3806182]
[1746631034437,0.98886151,602.19,601.29,3.3806182]
[1746631034738,0.98886151,602.18,601.29,3.3806182]
[1746631035238,0.98886151,602.17,601.29,3.3806182]
[1746631035834,0.98886151,602.16,601.29,3.3806182]
[1746631036533,0.98886151,602.15,601.29,3.3806182]
[1746631037241,0.98886151,602.14,601.29,3.3806182]
[1746631038244,0.98886151,602.13,601.29,3.3806182]
[1746631038842,0.98886151,602.12,601.29,3.3806182]
[1746631039043,0.98886151,602.11,601.29,3.3806182]
[1746631039439,0.98886151,602.1,601.29,3.3806182]
[1746631039839,0.98886151,602.09,601.29,3.3806182]
[1746631040045,0.98886151,602.08,601.29,3.3806182]
[1746631040344,0.98886151,602.07,601.29,3.3806182]
[1746631040640,0.98886151,602.06,601.29,3.3806182]
[1746631041138,0.98886151,602.05,601.29,3.3806182]
[1746631041538,0.98886151,602.04,601.29,3.3806182]
[1746631041745,0.98886151,602.03,601.29,3.3806182]
[1746631042345,0.98886151,602.02,601.29,3.3806182]
[1746631042741,0.98886151,602.01,601.29,3.3806182]
[1746631043346,0.98886151,602.0,601.29,3.3806182]
[1746631043645,0.98886151,601.99,601.29,3.3806182]
[1746631044143,0.98886151,601.98,601.29,3.3806182]
[1746631044745,0.98886151,601.97,601.29,3.3806182]
[1746631045146,0.98886151,601.96,601.29,3.3806182]
[1746631045942,0.98886151,601.95,601.29,3.3806182]
[1746631046340,0.98886151,601.94,601.29,3.3806182]
[1746631046649,0.98886151,601.93,601.29,3.3806182]
[1746631047540,0.98886151,601.92,601.29,3.3806182]
[1746631047850,0.98886151,601.91,601.29,3.3806182]
[1746631048149,0.98886151,601.9,601.29,3.3806182]
[1746631048748,0.98886151,601.89,601.29,3.3806182]
[1746631049354,0.28913861,602.54,601.29,3.3806182]
[1746631049654,0.99158618,602.53,601.29,3.3806182]
[1746631050349,0.99158618,602.52,601.29,3.3806182]
[1746631051049,0.99158618,602.51,601.29,3.3806182]
[1746631051556,0.99158618,602.5,601.29,3.3806182]
[1746631051751,0.99158618,602.49,601.29,3.3806182]
[1746631052151,0.99158618,602.48,601.29,3.3806182]
[1746631052651,0.99158618,602.47,601.29,3.3806182]
[1746631053156,0.99158618,602.46,601.29,3.3806182]
[1746631053456,0.99158618,602.45,601.29,3.3806182]
[1746631053756,0.99158618,602.44,601.29,3.3806182]
[1746631054056,0.99158618,602.43,601.29,3.3806182]
[1746631054250,0.99158618,602.42,601.29,3.3806182]
[1746631054958,0.99158618,602.41,601.29,3.3806182]
[1746631055462,0.99158618,602.4,601.29,3.3806182]
[1746631055956,0.99158618,602.39,601.29,3.3806182]
[1746631056555,0.99161162,602.38,601.29,3.3806182]
[1746631057156,0.99161162,602.37,601.29,3.3806182]
[1746631057760,0.99161162,602.36,601.29,3.3806182]
[1746631058162,0.99161162,602.35,601.29,3.3806182]
[1746631058559,0.99161162,602.34,601.29,3.3806182]
[1746631058760,0.99161162,602.33,601.29,3.3806182]
[1746631059160,0.99161162,602.32,601.29,3.3806182]
[1746631059657,0.99161162,602.31,601.29,3.3806182]
[1746631060162,0.99161162,602.3,601.29,3.3806182]
[1746631060562,0.99161162,602.29,601.29,3.3806182]
[1746631060762,0.99161162,602.28,601.29,3.3806182]
[1746631061067,0.99161162,602.27,601.29,3.3806182]
[1746631061260,0.99161162,602.26,601.29,3.3806182]
[1746631062162,0.99161162,602.25,601.29,3.3806182]
[1746631062664,0.99161162,602.24,601.29,3.3806182]
[1746631063365,0.99161162,602.23,601.29,3.3806182]
[1746631063565,0.99161162,602.22,601.29,3.3806182]
[1746631064162,0.99161162,602.21,601.29,3.3806182]
[1746631064565,0.99161162,602.2,601.29,3.3806182]
[1746631065265,0.99161162,602.19,601.29,3.3806182]
[1746631065664,0.99161162,602.18,601.29,3.3806182]
[1746631066271,0.99161162,602.17,601.29,3.3806182]
[1746631066470,0.99161162,602.16,601.29,3.3806182]
[1746631066966,0.99161162,602.15,601.29,3.3806182]
[1746631067570,0.99161162,602.14,601.29,3.3806182]
[1746631067766,0.99161162,602.13,601.29,3.3806182]
[1746631068076,0.99161162,602.12,601.29,3.3806182]
[1746631068572,0.99161162,602.11,601.29,3.3806182]
[1746631068772,0.99161162,602.1,601.29,3.3806182]
[1746631069172,0.99161162,602.09,601.29,3.3806182]
[1746631069368,0.99161162,602.08,601.29,3.3806182]
[1746631069571,0.99161162,602.07,601.29,3.3806182]
[1746631069972,0.99161162,602.06,601.29,3.3806182]
[1746631070374,0.99161162,602.05,601.29,3.3806182]
[1746631070774,0.99161162,602.04,601.29,3.3806182]
[1746631071675,0.99161162,602.03,601.29,3.3806182]
[1746631072175,0.99161162,602.02,601.29,3.3806182]
[1746631072372,0.99161162,602.01,601.29,3.3806182]
[1746631073476,0.99161162,602.0,601.29,3.3806182]
[1746631073775,0.99161162,601.99,601.29,3.3806182]
[1746631074271,0.99161162,601.98,601.29,3.3806182]
[1746631074877,0.99161162,601.97,601.29,3.3806182]
[1746631075176,0.99161162,601.96,601.29,3.3806182]
[1746631075676,0.99161162,601.95,601.29,3.3806182]
[1746631076276,0.99161162,601.94,601.29,3.3806182]
[1746631076677,0.33186758,602.65,601.29,3.3806182]
[1746631077078,1.29716423,602.64,601.29,3.3806182]
[1746631077479,0.30516574,602.63,601.29,3.3806182]
[1746631077679,0.99199079,602.62,601.29,3.3806182]
[1746631078077,0.99199079,602.61,601.29,3.3806182]
[1746631078278,1.29715653,602.61,601.29,3.3806182]
[1746631078578,1.29715653,602.6,601.29,3.3806182]
[1746631078880,0.30516574,602.59,601.29,3.3806182]
[1746631079178,0.99199079,602.58,601.29,3.3806182]
[1746631079778,0.99199079,602.57,601.29,3.3806182]
[1746631079974,0.99199079,602.56,601.29,3.3806182]
[1746631080374,0.99199079,602.55,601.29,3.3806182]
[1746631080975,0.99199079,602.54,601.29,3.3806182]
[1746631081776,0.99199079,602.53,601.29,3.3806182]
[1746631082282,0.99199079,602.52,601.29,3.3806182]
[1746631082481,0.99199079,602.51,601.29,3.3806182]
[1746631083179,0.99199079,602.5,601.29,3.3806182]
[1746631083781,0.99199079,602.49,601.29,3.3806182]
[1746631084384,0.99199079,602.48,601.29,3.3806182]
[1746631084983,0.99199079,602.47,601.29,3.3806182]
[1746631085184,0.99199079,602.46,601.29,3.3806182]
[1746631085882,0.99199079,602.45,601.29,3.3806182]
[1746631086382,0.99199079,602.44,601.29,3.3806182]
[1746631087283,0.99199079,602.43,601.29,3.3806182]
[1746631087683,0.99199079,602.42,601.29,3.3806182]
[1746631088285,0.99199079,602.41,601.29,3.3806182]
[1746631088785,0.99199079,602.4,601.29,3.3806182]
[1746631089587,0.99199079,602.39,601.29,3.3806182]
[1746631089786,0.99199079,602.38,601.29,3.3806182]
[1746631090587,0.99199079,602.37,601.29,3.3806182]
[1746631091087,0.99199079,602.36,601.29,3.3806182]
[1746631091589,0.99199079,602.35,601.29,3.3806182]
[1746631091887,0.99199079,602.34,601.29,3.3806182]
[1746631092682,0.99199079,602.33,601.29,3.3806182]
[1746631092988,0.99199079,602.32,601.29,3.3806182]
[1746631093691,0.99199079,602.31,601.29,3.3806182]
[1746631094090,0.99199079,602.3,601.29,3.3806182]
[1746631094693,0.99199079,602.29,601.29,3.3806182]
[1746631095386,0.9937377,602.28,601.29,3.3806182]
[1746631096086,0.9937377,602.27,601.29,3.3806182]
[1746631096486,0.33186758,602.65,601.29,3.3806182]
[1746631096487,0.9937377,602.26,601.29,3.3806182]
[1746631097191,0.9937377,602.25,601.29,3.3806182]
[1746631097591,0.9937377,602.24,601.29,3.3806182]
[1746631097990,0.9937377,602.23,601.29,3.3806182]
[1746631098391,0.9937377,602.22,601.29,3.3806182]
[1746631099189,0.9937377,602.21,601.29,3.3806182]
[1746631099693,0.9937377,602.2,601.29,3.3806182]
[1746631099987,0.9937377,602.19,601.29,3.3806182]
[1746631100390,0.9937377,602.18,601.29,3.3806182]
[1746631100995,0.33186758,602.65,601.29,3.3806182]
[1746631101691,0.99323251,602.64,601.29,3.3806182]
[1746631101994,0.99323251,602.63,601.29,3.3806182]
[1746631102187,0.99323251,602.62,601.29,3.3806182]
[1746631102796,0.99323251,602.61,601.29,3.3806182]
[1746631103495,0.99323251,602.6,601.29,3.3806182]
[1746631103995,0.99323251,602.59,601.29,3.3806182]
[1746631104596,0.99323251,602.58,601.29,3.3806182]
[1746631105394,0.99323251,602.57,601.29,3.3806182]
[1746631105694,0.99323251,602.56,601.29,3.3806182]
[1746631106094,0.99323251,602.55,601.29,3.3806182]
[1746631106596,0.99323251,602.54,601.29,3.3806182]
[1746631107391,0.99323251,602.53,601.29,3.3806182]
[1746631107595,0.99323251,602.52,601.29,3.3806182]
[1746631108190,0.99323251,602.51,601.29,3.3806182]
[1746631108492,0.99323251,602.5,601.29,3.3806182]
[1746631108896,0.99323251,602.49,601.29,3.3806182]
[1746631109198,0.99323251,602.48,601.29,3.3806182]
[1746631109598,0.99323251,602.47,601.29,3.3806182]
[1746631109799,0.99323251,602.46,601.29,3.3806182]
[1746631110000,0.99323251,602.45,601.29,3.3806182]
[1746631110700,0.99323251,602.44,601.29,3.3806182]
[1746631111100,0.99323251,602.43,601.29,3.3806182]
[1746631112001,0.99323251,602.42,601.29,3.3806182]
[1746631112296,0.99323251,602.41,601.29,3.3806182]
[1746631112699,0.99323251,602.4,601.29,3.3806182]
[1746631113204,0.99323251,602.39,601.29,3.3806182]
[1746631113404,0.99323251,602.38,601.29,3.3806182]
[1746631114305,0.99323251,602.37,601.29,3.3806182]
[1746631114606,0.99323251,602.36,601.29,3.3806182]
[1746631114805,0.99323251,602.35,601.29,3.3806182]
[1746631115106,0.99323251,602.34,601.29,3.3806182]
[1746631115406,0.99323251,602.33,601.29,3.3806182]
[1746631115600,0.99323251,602.32,601.29,3.3806182]
[1746631116307,0.99323251,602.31,601.29,3.3806182]
[1746631116608,0.99323251,602.3,601.29,3.3806182]
[1746631117006,0.99323251,602.29,601.29,3.3806182]
[1746631117602,0.99323251,602.28,601.29,3.3806182]
[1746631118004,0.99323251,602.27,601.29,3.3806182]
[1746631118208,0.99323251,602.26,601.29,3.3806182]
[1746631118804,0.99323251,602.25,601.29,3.3806182]
[1746631119305,0.99323251,602.24,601.29,3.3806182]
[1746631119508,0.99323251,602.23,601.29,3.3806182]
[1746631119704,0.99323251,602.22,601.29,3.3806182]
[1746631120110,0.99323251,602.21,601.29,3.3806182]
[1746631120409,0.99323251,602.2,601.29,3.3806182]
[1746631120705,0.99323251,602.19,601.29,3.3806182]
[1746631120910,0.99323251,602.18,601.29,3.3806182]
[1746631121106,0.33186758,602.65,601.29,3.3806182]
[1746631121107,0.99323251,602.17,601.29,3.3806182]
[1746631121406,0.99323251,602.16,601.29,3.3806182]
[1746631121811,0.99323251,602.15,601.29,3.3806182]
[1746631122211,0.99323251,602.14,601.29,3.3806182]
[1746631122408,0.99323251,602.13,601.29,3.3806182]
[1746631122813,0.99101631,602.12,601.29,3.3806182]
[1746631123010,0.99101631,602.11,601.29,3.3806182]
[1746631123411,0.99101631,602.1,601.29,3.3806182]
[1746631123614,0.99101631,602.09,601.29,3.3806182]
[1746631124014,0.99101631,602.08,601.29,3.3806182]
[1746631124215,0.99101631,602.07,601.29,3.3806182]
[1746631124514,0.99101631,602.06,601.29,3.3806182]
[1746631124914,0.99101631,602.05,601.29,3.3806182]
[1746631125116,0.33186758,602.65,601.29,3.3806182]
[1746631126017,0.99091666,602.64,601.29,3.3806182]
[1746631126418,0.99091666,602.63,601.29,3.3806182]
[1746631126613,0.99091666,602.62,601.29,3.3806182]
[1746631126814,0.99091666,602.61,601.29,3.3806182]
[1746631127011,0.99091666,602.6,601.29,3.3806182]
[1746631127211,0.99091666,602.59,601.29,3.3806182]
[1746631127416,0.99091666,602.58,601.29,3.3806182]
[1746631127816,0.99091666,602.57,601.29,3.3806182]
[1746631128014,0.99091666,602.56,601.29,3.3806182]
[1746631128719,0.33186758,602.65,601.29,3.3806182]
[1746631129018,0.9907909,602.55,601.29,3.3806182]
[1746631129319,0.9907909,602.54,601.29,3.3806182]
[1746631129519,0.9907909,602.53,601.29,3.3806182]
[1746631130118,0.9907909,602.52,601.29,3.3806182]
[1746631130914,0.9907909,602.51,601.29,3.3806182]
[1746631131217,0.9907909,602.5,601.29,3.3806182]
[1746631132017,0.9907909,602.49,601.29,3.3806182]
[1746631132423,0.9907909,602.48,601.29,3.3806182]
[1746631133021,0.9907909,602.47,601.29,3.3806182]
[1746631133521,0.9907909,602.46,601.29,3.3806182]
[1746631133919,0.9907909,602.45,601.29,3.3806182]
[1746631134923,0.9907909,602.44,601.29,3.3806182]
[1746631135519,0.9907909,602.43,601.29,3.3806182]
[1746631135823,0.9907909,602.42,601.29,3.3806182]
[1746631136123,0.9907909,602.41,601.29,3.3806182]
[1746631137024,0.9907909,602.4,601.29,3.3806182]
[1746631137523,0.9907909,602.39,601.29,3.3806182]
[1746631137723,0.9907909,602.38,601.29,3.3806182]
[1746631138524,0.9907909,602.37,601.29,3.3806182]
[1746631139425,0.9907909,602.36,601.29,3.3806182]
[1746631140224,0.9907909,602.35,601.29,3.3806182]
[1746631140724,0.9907909,602.34,601.29,3.3806182]
[1746631141126,0.9907909,602.33,601.29,3.3806182]
[1746631141727,0.9907909,602.32,601.29,3.3806182]
[1746631142631,0.9907909,602.31,601.29,3.3806182]
[1746631142928,0.9907909,602.3,601.29,3.3806182]
[1746631143629,0.9907909,602.29,601.29,3.3806182]
[1746631143929,0.9907909,602.28,601.29,3.3806182]
[1746631144432,0.9907909,602.27,601.29,3.3806182]
[1746631144827,0.9907909,602.26,601.29,3.3806182]
[1746631145232,0.9907909,602.25,601.29,3.3806182]
[1746631145732,0.9907909,602.24,601.29,3.3806182]
[1746631146130,0.9907909,602.23,601.29,3.3806182]
[1746631146527,0.9907909,602.22,601.29,3.3806182]
[1746631147231,0.9907909,602.21,601.29,3.3806182]
[1746631147733,0.9907909,602.2,601.29,3.3806182]
[1746631148033,0.9907909,602.19,601.29,3.3806182]
[1746631148634,0.9907909,602.18,601.29,3.3806182]
[1746631148829,0.9907909,602.17,601.29,3.3806182]
[1746631149133,0.9907909,602.16,601.29,3.3806182]
[1746631149734,0.9907909,602.15,601.29,3.3806182]
[1746631149936,0.9907909,602.14,601.29,3.3806182]
[1746631150344,0.9907909,602.13,601.29,3.3806182]
[1746631150637,0.9907909,602.12,601.29,3.3806182]
[1746631151236,0.9907909,602.11,601.29,3.3806182]
[1746631152133,0.9907909,602.1,601.29,3.3806182]
[1746631152338,0.9907909,602.09,601.29,3.3806182]
[1746631152734,0.9907909,602.08,601.29,3.3806182]
[1746631153234,0.9907909,602.07,601.29,3.3806182]
[1746631153537,0.9907909,602.06,601.29,3.3806182]
[1746631153837,0.9907909,602.05,601.29,3.3806182]
[1746631154038,0.33186758,602.65,601.29,3.3806182]
[1746631154637,0.99082148,602.64,601.29,3.3806182]
[1746631155140,0.99082148,602.63,601.29,3.3806182]
[1746631155439,0.99082148,602.62,601.29,3.3806182]
[1746631155841,0.99082148,602.61,601.29,3.3806182]